fUSD/lending_fUSD_20260329
["ID","MTS","AMOUNT","RATE_DAILY","PERIOD"]
[419065042,1774824649914,-500.0,0.00014785,2]
[419065043,1774824649925,-151.0,0.00014785,2]
[419065044,1774824649937,-500.0,0.00014785,2]
[419065045,1774824649947,-500.0,0.00014785,2]
[419065046,1774824649958,-500.0,0.00014785,2]
[419065047,1774824649969,-578.20924308,0.00014785,2]
[419065048,1774824649980,-500.0,0.00014785,2]
[419065049,1774824649991,-500.0,0.00014785,2]
[419065050,1774824650001,-500.0,0.00014785,2]
[419065051,1774824650012,-500.0,0.00014785,2]
[419065052,1774824650023,-500.0,0.00014785,2]
[419065053,1774824650033,-500.0,0.00014785,2]
[419065054,1774824650044,-693.3919763,0.00014785,2]
[419065055,1774824650055,-500.0,0.00014785,2]
[419065056,1774824650065,-209.40437684,0.00014785,2]
[419065057,1774824650074,-500.0,0.00014785,2]
[419065058,1774824650084,-500.0,0.00014785,2]
[419065059,1774824650093,-500.0,0.00014785,2]
[419065060,1774824650103,-500.0,0.00014785,2]
[419065061,1774824650113,-209.40437684,0.00014785,2]
[419065062,1774824650123,-500.0,0.00014785,2]
[419065063,1774824650133,-500.0,0.00014785,2]
[419065064,1774824650143,-500.0,0.00014785,2]
[419065065,1774824650153,-500.0,0.00014785,2]
[419065066,1774824650163,-500.0,0.00014785,2]
[419065067,1774824650173,-500.0,0.00014785,2]
[419065068,1774824650183,-500.0,0.00014785,2]
[419065069,1774824650194,-151.0,0.00014785,2]
[419065070,1774824650204,-500.0,0.00014785,2]
[419065071,1774824650214,-500.0,0.00014785,2]
[419065072,1774824650226,-500.0,0.00014785,2]
[419065073,1774824650239,-500.0,0.00014785,2]
[419065074,1774824650249,-500.0,0.00014785,2]
[419065075,1774824650259,-250.0,0.00014785,2]
[419065076,1774824650268,-250.0,0.00014785,2]
[419065077,1774824650278,-250.0,0.00014785,2]
[419065078,1774824650288,-250.0,0.00014785,2]
[419065079,1774824650298,-250.0,0.00014785,2]
[419065080,1774824650308,-250.0,0.00014785,2]
[419065081,1774824650318,-250.0,0.00014785,2]
[419065082,1774824650328,-250.0,0.00014785,2]
[419065083,1774824650338,-250.0,0.00014785,2]
[419065084,1774824650348,-250.0,0.00014785,2]
[419065085,1774824650358,-250.0,0.00014785,2]
[419065086,1774824650368,-209.40437684,0.00014785,2]
[419065087,1774824650379,-262.90206542,0.00014785,2]
[419065088,1774824650389,-151.0,0.00014785,2]
[419065089,1774824650399,-151.0,0.00014785,2]
[419065090,1774824650408,-151.0,0.00014785,2]
[419065091,1774824650418,-151.0,0.00014785,2]
[419065092,1774824650429,-279.9045709,0.00014785,2]
[419065093,1774824650439,-292.30151101,0.00014785,2]
[419065094,1774824650449,-200.0,0.00014785,2]
[419065095,1774824650459,-209.40437684,0.00014785,2]
[419065096,1774824650470,-743.50770149,0.00014785,2]
[419065097,1774824650480,-500.0,0.00014785,2]
[419065098,1774824650496,-500.0,0.00014785,2]
[419065099,1774824650507,-500.0,0.00014785,2]
[419065100,1774824650517,-500.0,0.00014785,2]
[419065101,1774824650529,-500.0,0.00014785,2]
[419065102,1774824650539,-1500.0,0.00014795,2]
[419065103,1774824650549,-1010.44418561,0.00014795,2]
[419065104,1774824650560,-1500.0,0.00014795,2]
[419065105,1774824650569,-911.77279152,0.00014795,2]
[419065106,1774824650579,-897.73186186,0.00014795,2]
[419065107,1774824650589,-1500.0,0.00014795,2]
[419065108,1774824650600,-402.73289396,0.00014795,2]
[419065109,1774824650609,-895.15417605,0.00014795,2]
[419065110,1774824650619,-1500.0,0.00014795,2]
[419065111,1774824650630,-971.18842002,0.00014795,2]
[419065112,1774824650639,-9606.51143059,0.00014833,2]
[419065113,1774824650649,-9905.5980765,0.0001484,2]
[419065114,1774824650660,-500.0,0.0001484,2]
[419065115,1774824650670,-151.0,0.0001484,2]
[419065116,1774824650680,-272.62944185,0.0001484,2]
[419065117,1774824650690,-166.66,0.00014881,2]
[419065118,1774824650700,-10272.10520533,0.00014895,2]
[419065119,1774824650710,-500.0,0.00014895,2]
[419065120,1774824650720,-151.0,0.00014895,2]
[419065121,1774824650730,-282.71673119,0.00014895,2]
[419065122,1774824650743,-544.45729765,0.000149,2]
[419065123,1774824650753,-200.0,0.00014932,2]
[419065124,1774824650763,-952.11597327,0.00014932,2]
[419065125,1774824650772,-393.00963669,0.00014938,2]
[419065126,1774824650783,-10652.17309792,0.0001495,2]
[419065127,1774824650793,-500.0,0.0001495,2]
[419065128,1774824650803,-151.0,0.0001495,2]
[419065129,1774824650815,-293.17725025,0.0001495,2]
[419065130,1774824650824,-150.0,0.00014964,2]
[419065131,1774824650836,-500.0,0.00015,2]
[419065132,1774824650848,-500.0,0.00015,2]
[419065133,1774824650858,-500.0,0.00015,2]
[419065134,1774824650868,-500.0,0.00015,2]
[419065135,1774824650879,-500.0,0.00015,2]
[419065136,1774824650889,-500.0,0.00015,2]
[419065137,1774824650899,-500.0,0.00015,2]
[419065138,1774824650909,-500.0,0.00015,2]
[419065139,1774824650919,-500.0,0.00015,2]
[419065140,1774824650930,-500.0,0.00015,2]
[419065141,1774824650941,-500.0,0.00015,2]
[419065142,1774824650952,-500.0,0.00015,2]
[419065143,1774824650963,-161.4,0.00015,2]
[419065144,1774824650974,-500.0,0.00015,2]
[419065145,1774824650984,-500.0,0.00015,2]
[419065146,1774824650996,-500.0,0.00015,2]
[419065147,1774824651006,-500.0,0.00015,2]
[419065148,1774824651016,-500.0,0.00015,2]
[419065149,1774824651026,-500.0,0.00015,2]
[419065150,1774824651037,-500.0,0.00015,2]
[419065151,1774824651048,-500.0,0.00015,2]
[419065152,1774824651057,-500.0,0.00015,2]
[419065153,1774824651067,-500.0,0.00015,2]
[419065154,1774824651077,-500.0,0.00015,2]
[419065155,1774824651087,-500.0,0.00015,2]
[419065156,1774824651097,-500.0,0.00015,2]
[419065157,1774824651107,-500.0,0.00015,2]
[419065158,1774824651117,-500.0,0.00015,2]
[419065159,1774824651127,-500.0,0.00015,2]
[419065160,1774824651137,-500.0,0.00015,2]
[419065161,1774824651147,-500.0,0.00015,2]
[419065162,1774824651157,-500.0,0.00015,2]
[419065163,1774824651168,-500.0,0.00015,2]
[419065164,1774824651178,-500.0,0.00015,2]
[419065165,1774824651188,-500.0,0.00015,2]
[419065166,1774824651199,-500.0,0.00015,2]
[419065167,1774824651208,-500.0,0.00015,2]
[419065168,1774824651217,-500.0,0.00015,2]
[419065169,1774824651227,-500.0,0.00015,2]
[419065170,1774824651237,-500.0,0.00015,2]
[419065171,1774824651247,-500.0,0.00015,2]
[419065172,1774824651257,-500.0,0.00015,2]
[419065173,1774824651266,-500.0,0.00015,2]
[419065174,1774824651275,-500.0,0.00015,2]
[419065175,1774824651286,-500.0,0.00015,2]
[419065176,1774824651296,-500.0,0.00015,2]
[419065177,1774824651306,-500.0,0.00015,2]
[419065178,1774824651315,-500.0,0.00015,2]
[419065179,1774824651325,-500.0,0.00015,2]
[419065180,1774824651334,-500.0,0.00015,2]
[419065181,1774824651344,-500.0,0.00015,2]
[419065182,1774824651353,-500.0,0.00015,2]
[419065183,1774824651363,-500.0,0.00015,2]
[419065184,1774824651374,-500.0,0.00015,2]
[419065185,1774824651384,-500.0,0.00015,2]
[419065186,1774824651395,-500.0,0.00015,2]
[419065187,1774824651404,-500.0,0.00015,2]
[419065188,1774824651414,-500.0,0.00015,2]
[419065189,1774824651424,-482.33,0.00015,2]
[419065190,1774824651434,-500.0,0.00015,2]
[419065191,1774824651444,-500.0,0.00015,2]
[419065192,1774824651455,-500.0,0.00015,2]
[419065193,1774824651467,-500.0,0.00015,2]
[419065194,1774824651476,-500.0,0.00015,2]
[419065195,1774824651490,-500.0,0.00015,2]
[419065196,1774824651501,-500.0,0.00015,2]
[419065197,1774824651511,-500.0,0.00015,2]
[419065198,1774824651521,-500.0,0.00015,2]
[419065199,1774824651531,-500.0,0.00015,2]
[419065200,1774824651540,-544.25,0.00015,2]
[419065201,1774824651550,-500.0,0.00015,2]
[419065202,1774824651560,-300.0,0.00015,2]
[419065203,1774824651570,-21604.97,0.00015,2]
[419065204,1774824651581,-2807.0,0.00015,2]
[419065205,1774824651591,-11046.30350255,0.00015005,2]
[419065206,1774824651601,-500.0,0.00015005,2]
[419065207,1774824651611,-151.0,0.00015005,2]
[419065208,1774824651621,-304.02480851,0.00015005,2]
[419065209,1774824651631,-296.44645607,0.00015005,2]
[419065210,1774824651641,-150.0,0.00015006,2]
[419065211,1774824651652,-500.0,0.00015013,2]
[419065212,1774824651661,-11455.01673214,0.0001506,2]
[419065213,1774824651672,-500.0,0.0001506,2]
[419065214,1774824651682,-151.0,0.0001506,2]
[419065215,1774824651691,-315.27372642,0.0001506,2]
[419065216,1774824651701,-880.69,0.00015068,2]
[419065217,1774824651711,-3475.3,0.00015068,2]
[419065218,1774824651721,-900.0,0.00015068,2]
[419065219,1774824651731,-150.0,0.00015072,2]
[419065220,1774824651743,-445.2574,0.000151,2]
[419065221,1774824651753,-4373.32,0.000151,2]
[419065222,1774824651763,-1602.93,0.000151,2]
[419065223,1774824651772,-3286.49,0.000151,2]
[419065224,1774824651782,-2000.0,0.000151,2]
[419065225,1774824651792,-150.0,0.00015111,2]
[419065226,1774824651803,-9035.0,0.00015114,2]
[419065227,1774824651813,-11878.85235123,0.00015115,2]
[419065228,1774824651823,-500.0,0.00015115,2]
[419065229,1774824651832,-151.0,0.00015115,2]
[419065230,1774824651842,-326.9388543,0.00015115,2]
[419065231,1774824651852,-3620.0,0.00015118,2]
[419065232,1774824651862,-12318.36988823,0.0001517,2]
[419065233,1774824651872,-500.0,0.0001517,2]
[419065234,1774824651882,-151.0,0.0001517,2]
[419065235,1774824651891,-339.03559191,0.0001517,2]
[419065236,1774824651901,-2286.622552,0.00015174,7]
[419065237,1774824652045,-28623.42782605,0.00015179,2]
[419065238,1774824652055,-1000.0,0.00015192,2]
[419065239,1774824652065,-4837.98,0.000152,2]
[419065240,1774824652074,-5055.34,0.000152,2]
[419065241,1774824652083,-10000.0,0.00015205,2]
[419065242,1774824652093,-150.0,0.00015206,2]
[419065243,1774824652102,-1000.0,0.00015221,2]
[419065244,1774824652111,-12774.14957409,0.00015225,2]
[419065245,1774824652121,-500.0,0.00015225,2]
[419065246,1774824652130,-151.0,0.00015225,2]
[419065247,1774824652140,-150.0,0.00015229,2]
[419065248,1774824652152,-150.0,0.00015248,2]
[419065249,1774824652162,-1000.0,0.0001525,2]
[419065250,1774824652171,-1000.0,0.00015257,2]
[419065251,1774824652181,-500.0,0.00015264,2]
[419065252,1774824652191,-500.0,0.00015264,2]
[419065253,1774824652201,-500.0,0.00015264,2]
[419065254,1774824652210,-500.0,0.00015264,2]
[419065255,1774824652219,-500.0,0.00015264,2]
[419065256,1774824652229,-500.0,0.00015264,2]
[419065257,1774824652239,-1000.0,0.00015264,2]
[419065258,1774824652249,-30000.0,0.00015269,2]
[419065259,1774824652258,-500.0,0.00015274,2]
[419065260,1774824652267,-1000.0,0.00015279,2]
[419065261,1774824652277,-13246.79310833,0.0001528,2]
[419065262,1774824652287,-500.0,0.0001528,2]
[419065263,1774824652298,-151.0,0.0001528,2]
[419065264,1774824652307,-1096.24809732,0.00015285,2]
[419065265,1774824652317,-536.16487377,0.00015299,2]
[419065266,1774824652326,-1000.0,0.00015301,2]
[419065267,1774824652336,-1000.0,0.00015304,2]
[419065268,1774824652346,-2000.0,0.0001531,2]
[419065269,1774824652355,-2000.0,0.0001531,2]
[419065270,1774824652365,-2000.0,0.0001531,2]
[419065271,1774824652374,-2000.0,0.0001531,2]
[419065272,1774824652384,-2000.0,0.0001531,2]
[419065273,1774824652394,-2000.0,0.0001531,2]
[419065274,1774824652404,-2000.0,0.0001531,2]
[419065275,1774824652414,-2000.0,0.0001531,2]
[419065276,1774824652424,-2000.0,0.0001531,2]
[419065277,1774824652433,-2000.0,0.0001531,2]
[419065278,1774824652443,-150.0,0.00015316,2]
[419065279,1774824652453,-1000.0,0.00015323,2]
[419065280,1774824652463,-2000.0,0.00015327,2]
[419065281,1774824652472,-2000.0,0.00015327,2]
[419065282,1774824652482,-2000.0,0.00015327,2]
[419065283,1774824652496,-2000.0,0.00015327,2]
[419065284,1774824652507,-2000.0,0.00015327,2]
[419065285,1774824652518,-2000.0,0.00015327,2]
[419065286,1774824652528,-2000.0,0.00015327,2]
[419065287,1774824652537,-2000.0,0.00015327,2]
[419065288,1774824652547,-2000.0,0.00015327,2]
[419065289,1774824652557,-2000.0,0.00015327,2]
[419065290,1774824652566,-181.08010149,0.00015333,2]
[419065291,1774824652577,-151.0,0.00015333,2]
[419065292,1774824652586,-719.04747942,0.00015333,2]
[419065293,1774824652595,-217.15233878,0.00015333,2]
[419065294,1774824652605,-217.15233878,0.00015333,2]
[419065295,1774824652615,-217.15233878,0.00015333,2]
[419065296,1774824652626,-290.26104003,0.00015333,2]
[419065297,1774824652638,-200.0,0.00015333,2]
[419065298,1774824652648,-771.01748645,0.00015333,2]
[419065299,1774824652658,-1000.0,0.00015333,2]
[419065300,1774824652667,-13736.92445334,0.00015335,2]
[419065301,1774824652676,-500.0,0.00015335,2]
[419065302,1774824652685,-151.0,0.00015335,2]
[419065303,1774824652694,-1000.0,0.00015336,2]
[419065304,1774824652705,-880.69,0.00015342,2]
[419065305,1774824652715,-1000.0,0.00015342,2]
[419065306,1774824652724,-2000.0,0.00015342,2]
[419065307,1774824652734,-1083.85118063,0.00015342,2]
[419065308,1774824652745,-1781.0056123,0.00015342,2]
[419065309,1774824652755,-1000.0,0.00015344,2]
[419065310,1774824652763,-1000.0,0.00015346,2]
[419065311,1774824652772,-1000.0,0.00015349,2]
[419065312,1774824652782,-1000.0,0.00015351,2]
[419065313,1774824652791,-1000.0,0.0001536,2]
[419065314,1774824652800,-2000.0,0.00015384,2]
[419065315,1774824652809,-2000.0,0.00015384,2]
[419065316,1774824652820,-2000.0,0.00015384,2]
[419065317,1774824652829,-2000.0,0.00015384,2]
[419065318,1774824652838,-2000.0,0.00015384,2]
[419065319,1774824652848,-2000.0,0.00015384,2]
[419065320,1774824652857,-2000.0,0.00015384,2]
[419065321,1774824652867,-2000.0,0.00015384,2]
[419065322,1774824652876,-2000.0,0.00015384,2]
[419065323,1774824652886,-2000.0,0.00015384,2]
[419065324,1774824652895,-1000.0,0.00015396,2]
[419065325,1774824652906,-1570.0,0.000154,2]
[419065326,1774824652916,-2807.0,0.000154,2]
[419065327,1774824652925,-161.0,0.000154,2]
[419065328,1774824652935,-161.0,0.000154,2]
[419065329,1774824652944,-2000.0,0.000154,2]
[419065330,1774824652953,-493.39,0.00015401,2]
[419065331,1774824652963,-1000.0,0.00015422,2]
[419065332,1774824652972,-1000.0,0.00015422,2]
[419065333,1774824652985,-150.0,0.00015428,2]
[419065334,1774824652996,-150.0,0.00015446,2]
[419065335,1774824653005,-1000.0,0.00015446,2]
[419065336,1774824653014,-1000.0,0.00015447,2]
[419065337,1774824653024,-1000.0,0.00015449,2]
[419065338,1774824653033,-291.35,0.00015453,2]
[419065339,1774824653042,-150.0,0.00015456,2]
[419065340,1774824653052,-1000.0,0.00015462,2]
[419065341,1774824653061,-1000.0,0.00015471,2]
[419065342,1774824653070,-1000.0,0.00015473,2]
[419065343,1774824653080,-150.0,0.00015476,2]
[419065344,1774824653089,-1000.0,0.00015478,2]
[419065345,1774824653098,-151.0,0.00015478,2]
[419065346,1774824653107,-200.0,0.0001548,2]
[419065347,1774824653116,-1000.0,0.00015495,2]
[419065348,1774824653126,-1000.0,0.00015509,2]
[419065349,1774824653136,-1000.0,0.00015511,2]
[419065350,1774824653146,-1000.0,0.00015513,2]
[419065351,1774824653156,-1000.0,0.00015514,2]
[419065352,1774824653164,-1000.0,0.00015514,2]
[419065353,1774824653174,-150.0,0.00015519,2]
[419065354,1774824653183,-1000.0,0.00015541,2]
[419065355,1774824653192,-150.0,0.00015543,2]
[419065356,1774824653201,-1000.0,0.00015545,2]
[419065357,1774824653211,-718.0,0.00015546,2]
[419065358,1774824653220,-1000.0,0.0001556,2]
[419065359,1774824653229,-1000.0,0.00015562,2]
[419065360,1774824653238,-203.94,0.00015579,2]
[419065361,1774824653250,-150.0,0.0001558,2]
[419065362,1774824653259,-150.0,0.0001559,2]
[419065363,1774824653268,-150.0,0.00015595,2]
[419065364,1774824653277,-1000.0,0.00015595,2]
[419065365,1774824653286,-718.0,0.00015596,2]
[419065366,1774824653295,-227.74950814,0.00015598,2]
[419065367,1774824653304,-150.0,0.00015599,2]
[419065368,1774824653313,-150.0,0.00015604,2]
[419065369,1774824653323,-1000.0,0.00015604,2]
[419065370,1774824653332,-1000.0,0.00015615,2]
[419065371,1774824653342,-203.94,0.00015615,2]
[419065372,1774824653351,-1000.0,0.00015616,2]
[419065373,1774824653361,-1000.0,0.00015618,2]
[419065374,1774824653370,-718.0,0.00015624,2]
[419065375,1774824653379,-3000.0,0.0001563,2]
[419065376,1774824653388,-3000.0,0.0001563,2]
[419065377,1774824653399,-150.0,0.00015635,2]
[419065378,1774824653409,-1000.0,0.00015639,2]
[419065379,1774824653418,-1000.0,0.00015647,2]
[419065380,1774824653428,-1000.0,0.0001565,2]
[419065381,1774824653437,-150.0,0.00015671,2]
[419065382,1774824653447,-7267.89922794,0.0001568,2]
[419065383,1774824653456,-1188.69408308,0.0001568,2]
[419065384,1774824653466,-1000.0,0.00015687,2]
[419065385,1774824653475,-187.77689859,0.00015694,2]
[419065386,1774824653485,-1570.0,0.00015699,2]
[419065387,1774824653497,-1570.0,0.00015699,2]
[419065388,1774824653506,-2000.0,0.000157,2]
[419065389,1774824653515,-350.0,0.00015705,2]
[419065390,1774824653525,-350.0,0.00015705,2]
[419065391,1774824653534,-1000.0,0.00015706,2]
[419065392,1774824653543,-1000.0,0.00015711,2]
[419065393,1774824653552,-1000.0,0.00015716,2]
[419065394,1774824653562,-2807.0,0.0001572,2]
[419065395,1774824653571,-718.0,0.00015726,2]
[419065396,1774824653581,-1000.0,0.0001573,2]
[419065397,1774824653590,-150.0,0.00015746,2]
[419065398,1774824653599,-200.0,0.00015747,2]
[419065399,1774824653608,-200.0,0.00015747,2]
[419065400,1774824653617,-1000.0,0.0001575,2]
[419065401,1774824653626,-3475.3,0.00015753,2]
[419065402,1774824653636,-1115.0,0.00015763,2]
[419065403,1774824653645,-1000.0,0.00015769,2]
[419065404,1774824653654,-150.0,0.00015774,2]
[419065405,1774824653664,-471.0,0.0001578,2]
[419065406,1774824653673,-522.0,0.00015781,2]
[419065407,1774824653683,-713.0,0.00015781,2]
[419065408,1774824653692,-150.0,0.00015785,2]
[419065409,1774824653702,-1000.0,0.00015787,2]
[419065410,1774824653711,-1050.151,0.00015789,2]
[419065411,1774824653722,-3518.0,0.00015789,2]
[419065412,1774824653732,-621.0,0.00015789,2]
[419065413,1774824653742,-1346.0,0.00015789,2]
[419065414,1774824653751,-151.208,0.00015789,2]
[419065415,1774824653760,-1270.708,0.00015789,2]
[419065416,1774824653770,-3765.0,0.00015789,2]
[419065417,1774824653780,-415.0,0.00015789,2]
[419065418,1774824653790,-6013.0,0.00015789,2]
[419065419,1774824653800,-718.0,0.0001579,2]
[419065420,1774824653808,-1000.0,0.00015794,2]
[419065421,1774824653818,-500.0,0.000158,5]
[419065422,1774824653828,-1000.0,0.00015804,2]
[419065423,1774824653837,-227.70167578,0.00015806,2]
[419065424,1774824653846,-150.0,0.0001581,2]
[419065425,1774824653855,-1000.0,0.00015811,2]
[419065426,1774824653864,-1000.0,0.00015811,2]
[419065427,1774824653873,-1000.0,0.00015811,2]
[419065428,1774824653882,-335.72179077,0.00015811,2]
[419065429,1774824653892,-150.0,0.00015816,2]
[419065430,1774824653903,-150.0,0.00015818,2]
[419065431,1774824653912,-1000.0,0.00015822,2]
[419065432,1774824653921,-67726.49863211,0.0001584,2]
[419065433,1774824653931,-2807.0,0.0001584,2]
[419065434,1774824653940,-2000.0,0.0001584,2]
[419065435,1774824653949,-2000.0,0.0001584,2]
[419065436,1774824653958,-1000.0,0.00015845,2]
[419065437,1774824653967,-1000.0,0.0001585,2]
[419065438,1774824653976,-2000.0,0.0001585,2]
[419065439,1774824653985,-683.0,0.00015851,2]
[419065440,1774824653996,-683.0,0.00015851,2]
[419065441,1774824654005,-1000.0,0.00015863,2]
[419065442,1774824654014,-1000.0,0.00015869,2]
[419065443,1774824654024,-200.0,0.00015871,2]
[419065444,1774824654033,-500.0,0.00015872,2]
[419065445,1774824654041,-200.0,0.00015872,2]
[419065446,1774824654050,-200.0,0.00015872,2]
[419065447,1774824654059,-500.0,0.00015873,2]
[419065448,1774824654068,-500.0,0.00015873,2]
[419065449,1774824654077,-1000.0,0.00015874,7]
[419065450,1774824654086,-1000.0,0.00015874,2]
[419065451,1774824654095,-683.0,0.00015876,2]
[419065452,1774824654104,-187.78006525,0.00015881,2]
[419065453,1774824654113,-151.0,0.00015881,2]
[419065454,1774824654122,-745.65223616,0.00015881,2]
[419065455,1774824654131,-225.18697532,0.00015881,2]
[419065456,1774824654140,-225.18697532,0.00015881,2]
[419065457,1774824654149,-225.18697532,0.00015881,2]
[419065458,1774824654158,-301.00069851,0.00015881,2]
[419065459,1774824654167,-200.0,0.00015881,2]
[419065460,1774824654176,-799.54513345,0.00015881,2]
[419065461,1774824654186,-1000.0,0.00015886,2]
[419065462,1774824654194,-1000.0,0.00015888,2]
[419065463,1774824654203,-3902.0,0.00015889,2]
[419065464,1774824654212,-2000.0,0.0001589,2]
[419065465,1774824654221,-2500.0,0.0001589,2]
[419065466,1774824654230,-150.0,0.00015891,2]
[419065467,1774824654239,-150.0,0.000159,2]
[419065468,1774824654248,-10000.0,0.000159,2]
[419065469,1774824654258,-150.0,0.000159,2]
[419065470,1774824654267,-150.0,0.000159,2]
[419065471,1774824654277,-150.0,0.000159,2]
[419065472,1774824654286,-150.0,0.000159,2]
[419065473,1774824654295,-500.0,0.000159,5]
[419065474,1774824654304,-9606.51143059,0.000159,2]
[419065475,1774824654313,-150.0,0.000159,2]
[419065476,1774824654323,-499.79551582,0.000159,2]
[419065477,1774824654332,-8190.0,0.000159,5]
[419065478,1774824654341,-7170.0,0.000159,5]
[419065479,1774824654350,-1000.0,0.00015905,2]
[419065480,1774824654359,-3902.0,0.00015907,2]
[419065481,1774824654368,-1000.0,0.00015913,2]
[419065482,1774824654377,-6390.42,0.00015913,2]
[419065483,1774824654386,-1000.0,0.00015915,2]
[419065484,1774824654395,-150.0,0.00015919,2]
[419065485,1774824654405,-150.0,0.0001592,2]
[419065486,1774824654414,-1000.0,0.00015923,2]
[419065487,1774824654423,-150.0,0.00015927,2]
[419065488,1774824654432,-151.0,0.00015931,2]
[419065489,1774824654441,-1000.0,0.00015931,2]
[419065490,1774824654451,-876911.2511876,0.00015934,2]
[419065491,1774824654460,-18607.5808694,0.00015934,2]
[419065492,1774824654469,-3902.0,0.00015935,2]
[419065493,1774824654479,-1000.0,0.00015943,2]
[419065494,1774824654487,-4018.3563956,0.00015956,2]
[419065495,1774824654499,-11993.98606279,0.00015956,2]
[419065496,1774824654508,-150.0,0.00015959,2]
[419065497,1774824654517,-718.0,0.00015959,2]
[419065498,1774824654526,-3835.20744626,0.0001596,2]
[419065499,1774824654534,-1570.0,0.0001596,2]
[419065500,1774824654544,-718.0,0.0001596,2]
[419065501,1774824654553,-1000.0,0.00015971,2]
[419065502,1774824654563,-1000.0,0.00015976,2]
[419065503,1774824654572,-1000.0,0.00015987,2]
[419065504,1774824654581,-370.63203301,0.00015989,2]
[419065505,1774824654590,-183.48101927,0.0001599,2]
[419065506,1774824654600,-1000.0,0.00015991,2]
[419065507,1774824654609,-1000.0,0.00015992,2]
[419065508,1774824654620,-350.0,0.00015994,2]
[419065509,1774824654629,-181.696768,0.00015997,2]
[419065510,1774824654638,-181.696768,0.00015997,2]
[419065511,1774824654647,-151.0,0.00015997,2]
[419065512,1774824654656,-1002.75935616,0.00015999,2]
[419065513,1774824654665,-177.293,0.00015999,2]
[419065514,1774824654675,-206.60894138,0.00016,2]
[419065515,1774824654684,-1094714.25882489,0.00016,2]
[419065516,1774824656022,-453.00898369,0.00016,2]
[419065517,1774824656033,-3216.5170958,0.00016,2]
[419065518,1774824656045,-130999.99999986,0.00016,2]
[419065519,1774824656057,-411818.16572168,0.00016,2]
[419065520,1774824656068,-640.93868497,0.00016,2]
[419065521,1774824656079,-1202.70522161,0.00016,2]
[419065522,1774824656090,-6600.0,0.00016,2]
[419065523,1774824656102,-57591.62178472,0.00016,2]
[419065524,1774824656114,-3651.92275925,0.00016,2]
[419065525,1774824656125,-3454.90214378,0.00016,2]
[419065526,1774824656137,-18350.28410114,0.00016,2]
[419065527,1774824656148,-24173.74116111,0.00016,2]
[419065528,1774824656160,-3707.98360147,0.00016,2]
[419065529,1774824656171,-14855.94185897,0.00016,2]
[419065530,1774824656184,-689.90416235,0.00016,2]
[419065531,1774824656195,-2237004.35270354,0.00016,2]
[419065532,1774824656205,-49051.76014197,0.00016,2]
[419065533,1774824656215,-2602.8019804,0.00016,2]
[419065534,1774824656225,-266.06934882,0.00016,2]
[419065535,1774824656234,-150.0,0.00016,2]
[419065536,1774824656244,-6653.35468478,0.00016,2]
[419065537,1774824656253,-150.0,0.00016,2]
[419065538,1774824656263,-21261.77397419,0.00016,2]
[419065539,1774824656272,-150.0,0.00016,2]
[419065540,1774824656281,-500.0,0.00016,2]
[419065541,1774824656291,-500.0,0.00016,2]